[Event "Morgan Stanley Charity 2018"]
[Site "Budapest"]
[Date "2018.09.14"]
[Round "4"]
[White "Terbe, Julianna"]
[Black "Novaky, Csaba"]
[Result "1/2-1/2"]
[ECO "A45"]
[WhiteElo "2260"]
[BlackElo "2088"]
[Annotator "NA"]
[PlyCount "104"]
[EventDate "2018.09.14"]
[EventType "team-tourn"]
[EventCountry "HUN"]
[SourceTitle "playchess.com"]
[Source "ChessBase"]
[SourceQuality "1"]
[TimeControl "1200+10"]

1. d4 {[%emt 0:00:02]} Nf6 {[%emt 0:00:02]} 2. Bf4 {[%emt 0:00:02]} d5 {[%emt 0:00:06]} 3. e3 {[%emt 0:00:03]} e6 {[%emt 0:00:07]} 4. Nf3 {[%emt 0:00:06]} Bd6 {[%emt 0:00:04]} 5. Bg3 {[%emt 0:00:03]} O-O {[%emt 0:00:06]} 6. Nbd2 {[%emt 0:00:02]} c5 {[%emt 0:00:35]} 7. c3 {[%emt 0:00:03]} Nc6 {[%emt 0:00:07]} 8. Bb5 {[%emt 0:00:11] D02: 1 d4 d5 2 Nf3 sidelines, including 2...Nf6 3 g3 and 2...Nf6 3 Bf4} Bxg3 {[%emt 0:01:47]} 9. hxg3 {[%emt 0:00:02]} Qb6 {[%emt 0:00:12]} 10. a4 {[%emt 0:01:05]} a6 {[%emt 0:00:17]} 11. Bxc6 {[%emt 0:00:07]} bxc6 {[%emt 0:00:09]} 12. Qc2 {[%emt 0:00:21]} Rb8 {[%emt 0:00:45]} 13. Ra2 $146 {[%emt 0:00:16]} ({Predecessor:} 13. Rb1 cxd4 14. cxd4 a5 15. Ne5 h6 {1-0 (40) So,W (2812)-Karjakin,S (2781) Stavanger 2017}) 13... a5 {[%emt 0:01:00]} 14. O-O {[%emt 0:00:23]} Ba6 {[%emt 0:00:28]} 15. Rc1 {[%emt 0:00:26]} Rfc8 {[%emt 0:00:31]} 16. Ne5 {[%emt 0:00:17]} Qc7 {[%emt 0:01:42]} 17. Ndf3 {[%emt 0:00:15]} Ne4 {[%emt 0:00:35]} 18. Nd2 {[%emt 0:02:28]} Nxd2 {[%emt 0:00:52]} 19. Qxd2 {[%emt 0:00:06]} f6 {[%emt 0:00:11]} 20. Nd3 {[%emt 0:00:38]} Bc4 {[%emt 0:00:08]} 21. Raa1 {[%emt 0:00:21]} Bxd3 {[%emt 0:00:09]} 22. Qxd3 {[%emt 0:00:02]} Rxb2 {[%emt 0:00:06]} 23. dxc5 {[%emt 0:00:31]} Qa7 {[%emt 0:01:38]} 24. Qd4 {[%emt 0:02:13]} Rcb8 {[%emt 0:00:41]} 25. c4 {[%emt 0:00:52]} R2b4 {[%emt 0:01:24]} 26. Qg4 {[%emt 0:00:38]} Re8 {[%emt 0:00:32]} 27. Qf3 {[%emt 0:00:13]} Qxc5 {[%emt 0:02:38]} ({Better is} 27... Qb7 $17) 28. cxd5 $11 {[%emt 0:00:04]} Qxd5 {[%emt 0:00:04]} 29. Rxc6 {[%emt 0:00:11]} Qe5 {[%emt 0:00:26]} 30. Rac1 {[%emt 0:02:28]} Rxa4 {[%emt 0:00:39]} 31. Qd1 {[%emt 0:01:26]} Rb4 {[%emt 0:01:31]} 32. Qd7 {[%emt 0:00:48]} Rbb8 {[%emt 0:00:18]} 33. R6c5 {[%emt 0:00:22]} Red8 {[%emt 0:01:24]} 34. Qe7 {[%emt 0:02:09]} Qd6 {[%emt 0:00:36]} 35. Qxd6 {[%emt 0:00:29]} Rxd6 {[%emt 0:00:02]} 36. Rxa5 {[%emt 0:00:01]} Rb7 {[%emt 0:00:07]} 37. g4 {[%emt 0:00:47]} Rd2 {[%emt 0:00:29]} 38. g5 {[%emt 0:01:02]} fxg5 {[%emt 0:00:38]} 39. Rxg5 {[%emt 0:00:04]} Kf7 {[%emt 0:00:34]} 40. Rc4 {[%emt 0:01:01]} Kf6 {[%emt 0:00:41]} 41. f4 {[%emt 0:01:04]} h6 {[%emt 0:00:49]} 42. Rg3 {[%emt 0:00:23]} Rb1+ {[%emt 0:01:17]} 43. Kh2 {[%emt 0:00:01]} Rdd1 {[%emt 0:00:10]} 44. Rf3 {[%emt 0:00:37]} Rf1 {[%emt 0:00:04]} 45. Rxf1 {[%emt 0:00:29]} Rxf1 {[%emt 0:00:02]} 46. Kg3 {[%emt 0:00:01]} g5 {[%emt 0:00:13]} 47. Kg4 {[%emt 0:01:33]} Kg6 {[%emt 0:00:24]} 48. fxg5 {[%emt 0:00:50]} hxg5 {[%emt 0:00:02]} 49. Rc3 {[%emt 0:00:19]} Ra1 {[%emt 0:00:09]} 50. e4 {[%emt 0:00:11]} Ra2 {[%emt 0:00:16]} 51. g3 {[%emt 0:00:06]} Ra4 {[%emt 0:00:06]} 52. Kf3 {[%emt 0:00:08]} g4+ {[%emt 0:00:05]} 1/2-1/2

[Event "Morgan Stanley Charity 2018"]
[Site "Budapest"]
[Date "2018.09.14"]
[Round "4"]
[White "Tomosvary, Attila"]
[Black "Gara, Ticia"]
[Result "0-1"]
[ECO "B23"]
[WhiteElo "2126"]
[BlackElo "2321"]
[Annotator "NA"]
[PlyCount "76"]
[EventDate "2018.09.14"]
[EventType "team-tourn"]
[EventCountry "HUN"]
[SourceTitle "playchess.com"]
[Source "ChessBase"]
[SourceQuality "1"]
[TimeControl "1200+10"]

1. e4 {[%emt 0:00:05]} c5 {[%emt 0:00:02]} 2. Nc3 {[%emt 0:00:04]} e6 {[%emt 0:00:07]} 3. f4 {[%emt 0:00:06]} Nc6 {[%emt 0:00:05]} 4. Nf3 {[%emt 0:00:10]} a6 {[%emt 0:00:14]} 5. g3 {[%emt 0:00:28]} d5 {[%emt 0:01:02]} 6. d3 {[%emt 0:00:18]} Nf6 {[%emt 0:00:11]} 7. e5 {[%emt 0:00:11]} d4 {[%emt 0:00:25]} 8. Ne2 {[%emt 0:01:03]} Nd5 {[%emt 0:00:16]} 9. Bg2 {[%emt 0:00:13]} Be7 {[%emt 0:00:28]} 10. O-O {[%emt 0:00:06]} O-O {[%emt 0:00:18]} 11. h3 {[%emt 0:00:28]} b5 {[%emt 0:00:11]} 12. g4 {[%emt 0:00:36]} Qc7 {[%emt 0:02:33]} 13. Ng3 {[%emt 0:00:35]} c4 {[%emt 0:00:52]} 14. a3 {[%emt 0:00:31]} cxd3 {[%emt 0:01:16]} 15. cxd3 {[%emt 0:00:22]} Bb7 {[%emt 0:01:29]} 16. Ne4 {[%emt 0:00:31]} Qb6 {[%emt 0:01:50]} 17. Qe2 {[%emt 0:01:49]} Na5 {[%emt 0:02:16]} 18. Qd1 {[%emt 0:07:09]} Rfd8 {[%emt 0:02:00]} 19. b4 {[%emt 0:02:18]} Nc6 {[%emt 0:00:01]} 20. Qe2 {[%emt 0:00:36]} a5 {[%emt 0:01:02]} 21. bxa5 {[%emt 0:00:31]} Nxa5 {[%emt 0:00:13]} 22. f5 {[%emt 0:00:33]} Nb3 {[%emt 0:00:57]} 23. Rb1 {[%emt 0:00:45]} Nxc1 {[%emt 0:00:32]} 24. Rfxc1 {[%emt 0:00:23]} Nf4 {[%emt 0:02:53]} 25. Qd2 {[%emt 0:01:07]} Nxg2 {[%emt 0:00:18]} 26. Kxg2 {[%emt 0:00:12]} Bxe4 {[%emt 0:01:05]} 27. dxe4 {[%emt 0:00:04]} Rxa3 {[%emt 0:00:11]} 28. f6 {[%emt 0:00:58]} gxf6 {[%emt 0:00:18]} 29. Qh6 {[%emt 0:00:16]} Rxf3 {[%emt 0:01:03]} 30. Kxf3 {[%emt 0:00:22]} fxe5 {[%emt 0:00:02]} 31. Qd2 {[%emt 0:00:38]} b4 {[%emt 0:00:24]} 32. Qd3 {[%emt 0:00:22]} Ra8 {[%emt 0:00:10]} 33. Rc4 {[%emt 0:00:22]} Ra2 {[%emt 0:00:13]} 34. Rb3 {[%emt 0:00:33]} Kg7 {[%emt 0:00:15]} 35. Kg3 {[%emt 0:00:11]} Qa6 {[%emt 0:00:10]} 36. Rc7 {[%emt 0:00:24]} Qd6 {[%emt 0:00:07]} 37. Qc4 {[%emt 0:00:20]} Qd8 {[%emt 0:00:07]} 38. g5 {[%emt 0:00:27]} Bxg5 {[%emt 0:00:07]} 0-1